[Event "*** Titled Tuesday Blitz"]
[Site "Chess.com"]
[Date "2021.02.02"]
[Round "7"]
[White "EfrenRamos1"]
[Black "Khnykin_Nikolay"]
[Result "1-0"]
[WhiteElo "2249"]
[BlackElo "2083"]
[TimeControl "180+1"]
[EndTime "11:19:24 PST"]
[Termination "EfrenRamos1 won by checkmate"]

1. Nf3 {[%clk 0:02:44.7]} 1... e6 {[%clk 0:02:58.4]} 2. c4 {[%clk 0:02:33.7]}
2... d5 {[%clk 0:02:56.6]} 3. d4 {[%clk 0:02:33]} 3... c5 {[%clk 0:02:53.1]} 4.
cxd5 {[%clk 0:02:31.9]} 4... exd5 {[%clk 0:02:51.5]} 5. Nc3 {[%clk 0:02:30.8]}
5... Nf6 {[%clk 0:02:50.1]} 6. g3 {[%clk 0:02:28.5]} 6... Be6 {[%clk 0:02:48.9]}
7. Bg2 {[%clk 0:02:28.6]} 7... Nc6 {[%clk 0:02:48.4]} 8. O-O {[%clk 0:02:28.4]}
8... Be7 {[%clk 0:02:45.6]} 9. dxc5 {[%clk 0:02:28.9]} 9... Bxc5 {[%clk
0:02:44.9]} 10. Bg5 {[%clk 0:02:29.4]} 10... O-O {[%clk 0:02:43.5]} 11. Rc1
{[%clk 0:02:28.3]} 11... Bb6 {[%clk 0:02:39.1]} 12. Na4 {[%clk 0:02:23]} 12...
Bc7 {[%clk 0:02:34.3]} 13. Nd4 {[%clk 0:02:23.5]} 13... Nxd4 {[%clk 0:02:28.4]}
14. Qxd4 {[%clk 0:02:22.1]} 14... Rc8 {[%clk 0:02:24.2]} 15. Bxf6 {[%clk
0:02:20.6]} 15... Qxf6 {[%clk 0:02:22.7]} 16. Qxf6 {[%clk 0:02:21]} 16... gxf6
{[%clk 0:02:21.2]} 17. Rfd1 {[%clk 0:02:20.9]} 17... Rfd8 {[%clk 0:02:18.7]} 18.
Nc5 {[%clk 0:02:21.2]} 18... b6 {[%clk 0:02:13.2]} 19. Nd3 {[%clk 0:02:14]}
19... Kf8 {[%clk 0:02:08.5]} 20. Nb4 {[%clk 0:02:11.2]} 20... d4 {[%clk
0:02:02]} 21. b3 {[%clk 0:02:08]} 21... Bd6 {[%clk 0:01:41.1]} 22. Nc6 {[%clk
0:02:06.3]} 22... Rd7 {[%clk 0:01:40.2]} 23. Nxd4 {[%clk 0:02:06.1]} 23... Rxc1
{[%clk 0:01:38.8]} 24. Nxe6+ {[%clk 0:02:04.6]} 24... fxe6 {[%clk 0:01:38.4]}
25. Rxc1 {[%clk 0:02:05.1]} 25... Rc7 {[%clk 0:01:37]} 26. Rxc7 {[%clk
0:01:59.6]} 26... Bxc7 {[%clk 0:01:36.9]} 27. f4 {[%clk 0:02:00.2]} 27... Ke7
{[%clk 0:01:36.1]} 28. Kf2 {[%clk 0:02:00.6]} 28... Kd6 {[%clk 0:01:34.8]} 29.
b4 {[%clk 0:01:56.2]} 29... a5 {[%clk 0:01:31.7]} 30. a3 {[%clk 0:01:56.3]}
30... axb4 {[%clk 0:01:30.6]} 31. axb4 {[%clk 0:01:57.2]} 31... b5 {[%clk
0:01:30.7]} 32. Ke3 {[%clk 0:01:55.9]} 32... e5 {[%clk 0:01:30.9]} 33. fxe5+
{[%clk 0:01:53.4]} 33... Kxe5 {[%clk 0:01:30.2]} 34. Bc6 {[%clk 0:01:52.5]}
34... Bb6+ {[%clk 0:01:25.2]} 35. Kd3 {[%clk 0:01:52.3]} 35... Bg1 {[%clk
0:01:23.3]} 36. h3 {[%clk 0:01:49.2]} 36... Bf2 {[%clk 0:01:21.3]} 37. g4 {[%clk
0:01:49.5]} 37... Kf4 {[%clk 0:01:18]} 38. Bxb5 {[%clk 0:01:49.7]} 38... Kg3
{[%clk 0:01:18.1]} 39. Bd7 {[%clk 0:01:49.2]} 39... Bb6 {[%clk 0:01:10.5]} 40.
e3 {[%clk 0:01:46.4]} 40... Bd8 {[%clk 0:01:01.2]} 41. b5 {[%clk 0:01:45.3]}
41... Kxh3 {[%clk 0:00:54.5]} 42. g5+ {[%clk 0:01:45.1]} 42... Kg3 {[%clk
0:00:54]} 43. gxf6 {[%clk 0:01:45.1]} 43... Bxf6 {[%clk 0:00:54.1]} 44. b6
{[%clk 0:01:45]} 44... Be5 {[%clk 0:00:54.2]} 45. Ke4 {[%clk 0:01:42.6]} 45...
Bb8 {[%clk 0:00:52.9]} 46. Be8 {[%clk 0:01:42.6]} 46... Kg4 {[%clk 0:00:51.2]}
47. Kd5 {[%clk 0:01:40.9]} 47... h5 {[%clk 0:00:50]} 48. e4 {[%clk 0:01:40.6]}
48... h4 {[%clk 0:00:48.9]} 49. e5 {[%clk 0:01:38.7]} 49... Kf4 {[%clk
0:00:43.8]} 50. e6 {[%clk 0:01:22.8]} 50... h3 {[%clk 0:00:36.7]} 51. Bc6 {[%clk
0:01:22.9]} 51... Kf5 {[%clk 0:00:32.9]} 52. e7 {[%clk 0:01:22]} 52... h2 {[%clk
0:00:29.8]} 53. Kc5 {[%clk 0:01:18.8]} 53... Kf6 {[%clk 0:00:17.5]} 54. e8=Q
{[%clk 0:01:18.1]} 54... Be5 {[%clk 0:00:16.8]} 55. b7 {[%clk 0:01:15]} 55...
Bf4 {[%clk 0:00:14.2]} 56. b8=Q {[%clk 0:01:13.6]} 56... Bxb8 {[%clk 0:00:13.4]}
57. Qxb8 {[%clk 0:01:13.2]} 57... h1=Q {[%clk 0:00:13.7]} 58. Qf8+ {[%clk
0:01:09]} 58... Kg5 {[%clk 0:00:12.7]} 59. Bxh1 {[%clk 0:01:08.5]} 59... Kg4
{[%clk 0:00:11.8]} 60. Be4 {[%clk 0:01:07.4]} 60... Kg5 {[%clk 0:00:11]} 61.
Qf5+ {[%clk 0:01:07.2]} 61... Kh6 {[%clk 0:00:10.1]} 62. Qg6# {[%clk 0:01:07.4]}
1-0

[Event "*** Titled Tuesday Blitz"]
[Site "Chess.com"]
[Date "2021.02.02"]
[Round "7"]
[White "CrushingKings"]
[Black "temiksmozg"]
[Result "1-0"]
[WhiteElo "2371"]
[BlackElo "2612"]
[TimeControl "180+1"]
[EndTime "11:19:25 PST"]
[Termination "CrushingKings won on time"]

1. e4 {[%clk 0:03:00.9]} 1... c5 {[%clk 0:02:59.5]} 2. d4 {[%clk 0:03:01.4]}
2... e6 {[%clk 0:03:00.1]} 3. d5 {[%clk 0:03:01.1]} 3... Nf6 {[%clk 0:02:55.1]}
4. Nc3 {[%clk 0:02:58.3]} 4... exd5 {[%clk 0:02:54.1]} 5. exd5 {[%clk
0:02:59.2]} 5... Bd6 {[%clk 0:02:51.9]} 6. Nf3 {[%clk 0:02:57.3]} 6... O-O
{[%clk 0:02:51.9]} 7. Be2 {[%clk 0:02:56.4]} 7... Re8 {[%clk 0:02:36.4]} 8. O-O
{[%clk 0:02:55.5]} 8... h6 {[%clk 0:02:28.9]} 9. h3 {[%clk 0:02:48.7]} 9... b6
{[%clk 0:02:23.5]} 10. Nb5 {[%clk 0:02:43.7]} 10... Bf8 {[%clk 0:02:21.4]} 11.
d6 {[%clk 0:02:39.8]} 11... Na6 {[%clk 0:02:19.5]} 12. a3 {[%clk 0:02:10.8]}
12... Bb7 {[%clk 0:02:18.5]} 13. b3 {[%clk 0:02:04.7]} 13... Qc8 {[%clk
0:02:00.5]} 14. Bb2 {[%clk 0:02:01.1]} 14... Ne4 {[%clk 0:01:38.1]} 15. Re1
{[%clk 0:01:52.1]} 15... Bc6 {[%clk 0:01:33.8]} 16. Ne5 {[%clk 0:01:48.9]} 16...
Rxe5 {[%clk 0:00:55.3]} 17. Bxe5 {[%clk 0:01:46.8]} 17... Qb7 {[%clk 0:00:55.4]}
18. c4 {[%clk 0:01:27.6]} 18... Re8 {[%clk 0:00:51.5]} 19. Bf4 {[%clk
0:01:19.2]} 19... Re6 {[%clk 0:00:44.6]} 20. Bg4 {[%clk 0:01:15.9]} 20... Rf6
{[%clk 0:00:42.8]} 21. Be3 {[%clk 0:00:52.6]} 21... Nxd6 {[%clk 0:00:37.7]} 22.
Nc3 {[%clk 0:00:26.7]} 22... Nc7 {[%clk 0:00:32.2]} 23. f3 {[%clk 0:00:19.9]}
23... Nf5 {[%clk 0:00:27.5]} 24. Bf2 {[%clk 0:00:17.4]} 24... d5 {[%clk
0:00:21.5]} 25. cxd5 {[%clk 0:00:16.7]} 25... Nxd5 {[%clk 0:00:22.4]} 26. Ne4
{[%clk 0:00:16.3]} 26... Nd4 {[%clk 0:00:13.4]} 27. Bxd4 {[%clk 0:00:15.9]}
27... cxd4 {[%clk 0:00:12.4]} 28. Nxf6+ {[%clk 0:00:16.3]} 28... Nxf6 {[%clk
0:00:12.5]} 29. b4 {[%clk 0:00:16.7]} 29... h5 {[%clk 0:00:10.7]} 30. Bf5 {[%clk
0:00:16.7]} 30... g6 {[%clk 0:00:10.2]} 31. Qxd4 {[%clk 0:00:15.9]} 31... Bg7
{[%clk 0:00:09.2]} 32. Qd8+ {[%clk 0:00:15.6]} 32... Kh7 {[%clk 0:00:08.8]} 33.
Re7 {[%clk 0:00:15.6]} 33... Qa6 {[%clk 0:00:06]} 34. Bd3 {[%clk 0:00:13.4]}
34... Qa4 {[%clk 0:00:03.7]} 35. Rxf7 {[%clk 0:00:13.8]} 35... Qb3 {[%clk
0:00:02.3]} 36. Qxf6 {[%clk 0:00:09.8]} 1-0

[Event "*** Titled Tuesday Blitz"]
[Site "Chess.com"]
[Date "2021.02.02"]
[Round "7"]
[White "LileKoridze"]
[Black "Lion-Al-Messi"]
[Result "0-1"]
[WhiteElo "2373"]
[BlackElo "2559"]
[TimeControl "180+1"]
[EndTime "11:19:26 PST"]
[Termination "Lion-Al-Messi won by checkmate"]

1. d4 {[%clk 0:03:00.9]} 1... d5 {[%clk 0:02:59]} 2. c4 {[%clk 0:03:01.3]} 2...
c6 {[%clk 0:02:59.2]} 3. Nf3 {[%clk 0:03:01.1]} 3... Nf6 {[%clk 0:02:59.2]} 4.
Nc3 {[%clk 0:03:01.8]} 4... dxc4 {[%clk 0:02:59.1]} 5. a4 {[%clk 0:03:01.7]}
5... Bf5 {[%clk 0:02:59]} 6. e3 {[%clk 0:03:02.2]} 6... e6 {[%clk 0:02:59.4]} 7.
Bxc4 {[%clk 0:03:02.6]} 7... Bb4 {[%clk 0:02:59.6]} 8. O-O {[%clk 0:03:02.9]}
8... Nbd7 {[%clk 0:03:00]} 9. Nh4 {[%clk 0:03:02.5]} 9... O-O {[%clk 0:02:58.2]}
10. Nxf5 {[%clk 0:02:59]} 10... exf5 {[%clk 0:02:58.2]} 11. Qb3 {[%clk
0:02:47.5]} 11... Bd6 {[%clk 0:02:23.9]} 12. h3 {[%clk 0:02:39]} 12... Qc7
{[%clk 0:02:07.7]} 13. Qc2 {[%clk 0:02:16.6]} 13... g6 {[%clk 0:02:05.4]} 14. e4
{[%clk 0:02:10.5]} 14... fxe4 {[%clk 0:02:04.1]} 15. Nxe4 {[%clk 0:01:44.8]}
15... Nxe4 {[%clk 0:02:02.6]} 16. Qxe4 {[%clk 0:01:43.3]} 16... Rae8 {[%clk
0:02:03]} 17. Qf3 {[%clk 0:01:40.6]} 17... Nb6 {[%clk 0:02:01.2]} 18. Bb3 {[%clk
0:01:36.2]} 18... Kg7 {[%clk 0:01:54.4]} 19. a5 {[%clk 0:01:11.9]} 19... Nc8
{[%clk 0:01:53.8]} 20. d5 {[%clk 0:01:08.1]} 20... c5 {[%clk 0:01:50.6]} 21. Bg5
{[%clk 0:01:05.6]} 21... f6 {[%clk 0:01:49.9]} 22. Bd2 {[%clk 0:01:05.6]} 22...
Be5 {[%clk 0:01:48.5]} 23. Rae1 {[%clk 0:00:40.9]} 23... Nd6 {[%clk 0:01:45.3]}
24. Qg4 {[%clk 0:00:34]} 24... c4 {[%clk 0:01:40.6]} 25. Bc2 {[%clk 0:00:32.3]}
25... f5 {[%clk 0:01:38.4]} 26. Qh4 {[%clk 0:00:31.7]} 26... Bf6 {[%clk
0:01:34.9]} 27. Bh6+ {[%clk 0:00:26.4]} 27... Kg8 {[%clk 0:01:34.6]} 28. Rxe8
{[%clk 0:00:22.6]} 28... Nxe8 {[%clk 0:01:30.5]} 29. d6 {[%clk 0:00:16.7]} 29...
Qf7 {[%clk 0:01:20.6]} 30. Qf4 {[%clk 0:00:14.9]} 30... Bg7 {[%clk 0:01:17.5]}
31. Bg5 {[%clk 0:00:12.3]} 31... Bf6 {[%clk 0:01:11.9]} 32. d7 {[%clk 0:00:09]}
32... Qxd7 {[%clk 0:01:08.1]} 33. Qxc4+ {[%clk 0:00:09.1]} 33... Qf7 {[%clk
0:01:07.8]} 34. Qxf7+ {[%clk 0:00:08.8]} 34... Kxf7 {[%clk 0:01:08.7]} 35. Bb3+
{[%clk 0:00:08.8]} 35... Kg7 {[%clk 0:01:08.6]} 36. Bxf6+ {[%clk 0:00:07.7]}
36... Nxf6 {[%clk 0:01:07.9]} 37. Rc1 {[%clk 0:00:07.9]} 37... Rd8 {[%clk
0:01:07.1]} 38. Rc7+ {[%clk 0:00:07.4]} 38... Rd7 {[%clk 0:01:07.2]} 39. Rc8
{[%clk 0:00:07.8]} 39... b6 {[%clk 0:01:02.3]} 40. axb6 {[%clk 0:00:07.5]} 40...
axb6 {[%clk 0:01:03.2]} 41. Rb8 {[%clk 0:00:07.7]} 41... Rd6 {[%clk 0:01:03.4]}
42. Rb7+ {[%clk 0:00:08]} 42... Kh6 {[%clk 0:01:03.2]} 43. Bf7 {[%clk
0:00:06.9]} 43... f4 {[%clk 0:01:02.4]} 44. g3 {[%clk 0:00:05.3]} 44... fxg3
{[%clk 0:00:58.2]} 45. fxg3 {[%clk 0:00:05.8]} 45... Ne4 {[%clk 0:00:57.9]} 46.
g4 {[%clk 0:00:04.7]} 46... Rd2 {[%clk 0:00:54]} 47. Rxb6 {[%clk 0:00:03.5]}
47... Kg5 {[%clk 0:00:53.9]} 48. Bg8 {[%clk 0:00:03.2]} 48... Kf4 {[%clk
0:00:53.1]} 49. Rb3 {[%clk 0:00:03.5]} 49... Ng5 {[%clk 0:00:46.2]} 50. h4
{[%clk 0:00:03.4]} 50... Nf3+ {[%clk 0:00:46]} 51. Kf1 {[%clk 0:00:03.9]} 51...
Kg3 {[%clk 0:00:45.1]} 52. Be6 {[%clk 0:00:03.1]} 52... Rf2# {[%clk 0:00:43.8]}
0-1

[Event "*** Titled Tuesday Blitz"]
[Site "Chess.com"]
[Date "2021.02.02"]
[Round "7"]
[White "Vugar_Manafov"]
[Black "ShahMatKanal"]
[Result "1-0"]
[WhiteElo "2663"]
[BlackElo "2490"]
[TimeControl "180+1"]
[EndTime "11:19:27 PST"]
[Termination "Vugar_Manafov won on time"]

1. Nf3 {[%clk 0:03:00.9]} 1... d5 {[%clk 0:02:59.4]} 2. g3 {[%clk 0:02:59.9]}
2... g6 {[%clk 0:02:58.6]} 3. Bg2 {[%clk 0:02:59.9]} 3... Bg7 {[%clk 0:02:59]}
4. O-O {[%clk 0:03:00.8]} 4... Nf6 {[%clk 0:02:59.3]} 5. d3 {[%clk 0:03:01.2]}
5... O-O {[%clk 0:02:58.7]} 6. Nc3 {[%clk 0:03:01.7]} 6... c5 {[%clk 0:02:49.8]}
7. e4 {[%clk 0:03:01.4]} 7... d4 {[%clk 0:02:49.2]} 8. Ne2 {[%clk 0:03:00.6]}
8... Nc6 {[%clk 0:02:49.5]} 9. Nd2 {[%clk 0:03:00.7]} 9... Ne8 {[%clk
0:02:40.7]} 10. f4 {[%clk 0:03:00]} 10... f5 {[%clk 0:02:40.4]} 11. Nc4 {[%clk
0:02:54.7]} 11... Rb8 {[%clk 0:02:22.8]} 12. a4 {[%clk 0:02:53.9]} 12... Nd6
{[%clk 0:02:11.3]} 13. b3 {[%clk 0:02:37.7]} 13... Nxc4 {[%clk 0:02:07.7]} 14.
bxc4 {[%clk 0:02:38.6]} 14... Qc7 {[%clk 0:02:01.8]} 15. e5 {[%clk 0:02:17.7]}
15... b6 {[%clk 0:01:55.3]} 16. h4 {[%clk 0:02:08.8]} 16... Bb7 {[%clk 0:01:48]}
17. Bd5+ {[%clk 0:01:55]} 17... Kh8 {[%clk 0:01:47.7]} 18. h5 {[%clk 0:01:54.7]}
18... Nb4 {[%clk 0:01:34.6]} 19. Bxb7 {[%clk 0:01:50.1]} 19... Qxb7 {[%clk
0:01:29.3]} 20. Bd2 {[%clk 0:01:48.2]} 20... Nc6 {[%clk 0:01:25]} 21. Rf2 {[%clk
0:01:34.1]} 21... Kg8 {[%clk 0:01:19.2]} 22. Qf1 {[%clk 0:01:31.3]} 22... Kf7
{[%clk 0:01:01.8]} 23. Rh2 {[%clk 0:01:22.8]} 23... Rg8 {[%clk 0:00:58]} 24. Qg2
{[%clk 0:01:20.5]} 24... Nd8 {[%clk 0:00:55.3]} 25. hxg6+ {[%clk 0:01:18.2]}
25... hxg6 {[%clk 0:00:55]} 26. Qxb7 {[%clk 0:01:16.2]} 26... Rxb7 {[%clk
0:00:54.9]} 27. Kf2 {[%clk 0:01:14.3]} 27... Rh8 {[%clk 0:00:49.8]} 28. Rxh8
{[%clk 0:01:12.9]} 28... Bxh8 {[%clk 0:00:50.5]} 29. Nc1 {[%clk 0:01:12]} 29...
g5 {[%clk 0:00:41.3]} 30. Nb3 {[%clk 0:01:11.5]} 30... Ne6 {[%clk 0:00:38.6]}
31. a5 {[%clk 0:01:10.5]} 31... b5 {[%clk 0:00:36]} 32. a6 {[%clk 0:01:07.5]}
32... Rb6 {[%clk 0:00:31]} 33. cxb5 {[%clk 0:01:07.4]} 33... Rxb5 {[%clk
0:00:30.6]} 34. Ra5 {[%clk 0:01:07.5]} 34... Rb6 {[%clk 0:00:21]} 35. Bc1 {[%clk
0:00:57.7]} 35... gxf4 {[%clk 0:00:20.3]} 36. gxf4 {[%clk 0:00:58.6]} 36... Bg7
{[%clk 0:00:19.6]} 37. Ba3 {[%clk 0:00:58.6]} 37... Nxf4 {[%clk 0:00:16]} 38.
Bxc5 {[%clk 0:00:58.1]} 38... Rc6 {[%clk 0:00:10.3]} 39. Bxa7 {[%clk 0:00:53.2]}
39... Rxc2+ {[%clk 0:00:08.9]} 40. Kf3 {[%clk 0:00:52.6]} 40... Nxd3 {[%clk
0:00:07.8]} 41. Bxd4 {[%clk 0:00:51.4]} 41... Ne1+ {[%clk 0:00:03.6]} 42. Kg3
{[%clk 0:00:45.5]} 42... Rg2+ {[%clk 0:00:03.4]} 43. Kh3 {[%clk 0:00:45.1]}
43... Rg4 {[%clk 0:00:01.5]} 44. a7 {[%clk 0:00:42.5]} 44... Nf3 {[%clk
0:00:01.4]} 45. a8=Q {[%clk 0:00:39.4]} 45... Bh6 {[%clk 0:00:01.7]} 46. Qxf3
{[%clk 0:00:38.4]} 1-0

[Event "*** Titled Tuesday Blitz"]
[Site "Chess.com"]
[Date "2021.02.02"]
[Round "7"]
[White "esrosenberg"]
[Black "kobemagic"]
[Result "0-1"]
[WhiteElo "2179"]
[BlackElo "2366"]
[TimeControl "180+1"]
[EndTime "11:19:28 PST"]
[Termination "kobemagic won by checkmate"]

1. Nf3 {[%clk 0:03:00.9]} 1... g6 {[%clk 0:02:59.3]} 2. e4 {[%clk 0:03:00.6]}
2... Bg7 {[%clk 0:03:00.2]} 3. c4 {[%clk 0:03:00.7]} 3... d6 {[%clk 0:03:00.5]}
4. h3 {[%clk 0:02:58]} 4... c5 {[%clk 0:03:00.9]} 5. d4 {[%clk 0:02:56.7]} 5...
cxd4 {[%clk 0:03:00]} 6. Nxd4 {[%clk 0:02:57.6]} 6... Nc6 {[%clk 0:03:00.5]} 7.
Be3 {[%clk 0:02:56]} 7... Nf6 {[%clk 0:02:59.6]} 8. Nc3 {[%clk 0:02:55]} 8...
O-O {[%clk 0:02:59.6]} 9. Nc2 {[%clk 0:02:47.9]} 9... Be6 {[%clk 0:02:58.4]} 10.
Be2 {[%clk 0:02:40.7]} 10... a6 {[%clk 0:02:53.6]} 11. O-O {[%clk 0:02:40.2]}
11... Rc8 {[%clk 0:02:54.2]} 12. Qd2 {[%clk 0:02:37.2]} 12... Na5 {[%clk
0:02:52.9]} 13. b3 {[%clk 0:02:32.2]} 13... b5 {[%clk 0:02:43.1]} 14. Nd4 {[%clk
0:01:52.6]} 14... b4 {[%clk 0:02:31.9]} 15. Nxe6 {[%clk 0:01:43.7]} 15... fxe6
{[%clk 0:02:32.8]} 16. Na4 {[%clk 0:01:37.5]} 16... Nxe4 {[%clk 0:02:30.9]} 17.
Qxb4 {[%clk 0:01:37.6]} 17... Nc6 {[%clk 0:02:24.5]} 18. Qb7 {[%clk 0:01:24.2]}
18... Bxa1 {[%clk 0:02:13.9]} 19. Rxa1 {[%clk 0:01:23.3]} 19... Qc7 {[%clk
0:02:08.3]} 20. Qxa6 {[%clk 0:00:54.1]} 20... Nb4 {[%clk 0:02:05.2]} 21. Qb6
{[%clk 0:00:34.3]} 21... Nc2 {[%clk 0:02:02.4]} 22. Rc1 {[%clk 0:00:12.3]} 22...
Nxe3 {[%clk 0:01:42.1]} 23. Qxe3 {[%clk 0:00:13.1]} 23... Nxf2 {[%clk
0:01:30.6]} 24. Qxe6+ {[%clk 0:00:13]} 24... Rf7 {[%clk 0:01:30.7]} 25. Bf3
{[%clk 0:00:09.3]} 25... Nd3 {[%clk 0:01:27.6]} 26. Rf1 {[%clk 0:00:09.4]} 26...
Nf4 {[%clk 0:01:20]} 27. Qg4 {[%clk 0:00:06.6]} 27... Kg7 {[%clk 0:01:12.1]} 28.
g3 {[%clk 0:00:05.3]} 28... Nd3 {[%clk 0:01:06.7]} 29. Qd4+ {[%clk 0:00:05]}
29... Ne5 {[%clk 0:01:06.4]} 30. Nc3 {[%clk 0:00:02.9]} 30... Qc5 {[%clk
0:01:03.1]} 31. Qxc5 {[%clk 0:00:02.7]} 31... Rxc5 {[%clk 0:01:03.7]} 32. Bd5
{[%clk 0:00:01.9]} 32... Rxf1+ {[%clk 0:01:02.2]} 33. Kxf1 {[%clk 0:00:02.8]}
33... Ra5 {[%clk 0:00:56.9]} 34. a4 {[%clk 0:00:02.7]} 34... Nd3 {[%clk
0:00:53.8]} 35. Ke2 {[%clk 0:00:03]} 35... Nc1+ {[%clk 0:00:53.1]} 36. Ke3
{[%clk 0:00:01.9]} 36... Nxb3 {[%clk 0:00:54]} 37. Kd3 {[%clk 0:00:01.8]} 37...
Nc5+ {[%clk 0:00:54.1]} 38. Kd4 {[%clk 0:00:02]} 38... Nxa4 {[%clk 0:00:55]} 39.
Nxa4 {[%clk 0:00:02.4]} 39... Rxa4 {[%clk 0:00:55.4]} 40. g4 {[%clk 0:00:02.7]}
40... Kf6 {[%clk 0:00:54.5]} 41. h4 {[%clk 0:00:03]} 41... e6 {[%clk 0:00:54.8]}
42. g5+ {[%clk 0:00:03.5]} 42... Ke7 {[%clk 0:00:54.2]} 43. Bc6 {[%clk
0:00:03.4]} 43... Ra3 {[%clk 0:00:52.8]} 44. Bb5 {[%clk 0:00:03.2]} 44... Rh3
{[%clk 0:00:52.3]} 45. Ke4 {[%clk 0:00:02.7]} 45... Rxh4+ {[%clk 0:00:53.2]} 46.
Kd3 {[%clk 0:00:03.2]} 46... Rg4 {[%clk 0:00:52.8]} 47. Kc3 {[%clk 0:00:03.7]}
47... Rxg5 {[%clk 0:00:53.7]} 48. Kd4 {[%clk 0:00:04.3]} 48... Rg3 {[%clk
0:00:52.9]} 49. Ke4 {[%clk 0:00:04.3]} 49... h5 {[%clk 0:00:52.4]} 50. Kf4
{[%clk 0:00:04.6]} 50... h4 {[%clk 0:00:53.3]} 51. Ke4 {[%clk 0:00:04.5]} 51...
g5 {[%clk 0:00:54.2]} 52. Bc6 {[%clk 0:00:04.3]} 52... h3 {[%clk 0:00:54.3]} 53.
Bb5 {[%clk 0:00:04.4]} 53... h2 {[%clk 0:00:54.7]} 54. c5 {[%clk 0:00:05.3]}
54... h1=Q+ {[%clk 0:00:54.8]} 55. Kd4 {[%clk 0:00:04.5]} 55... Qd5# {[%clk
0:00:55.3]} 0-1

[Event "*** Titled Tuesday Blitz"]
[Site "Chess.com"]
[Date "2021.02.02"]
[Round "7"]
[White "dozer80"]
[Black "GadimbayliA"]
[Result "0-1"]
[WhiteElo "2597"]
[BlackElo "2881"]
[TimeControl "180+1"]
[EndTime "11:19:30 PST"]
[Termination "GadimbayliA won by resignation"]

1. e4 {[%clk 0:03:00.9]} 1... e5 {[%clk 0:02:51]} 2. Nc3 {[%clk 0:02:59.7]} 2...
Nf6 {[%clk 0:02:50.6]} 3. g3 {[%clk 0:02:59.9]} 3... d5 {[%clk 0:02:48.4]} 4.
exd5 {[%clk 0:03:00.8]} 4... Nxd5 {[%clk 0:02:49.3]} 5. Bg2 {[%clk 0:03:01.4]}
5... Nxc3 {[%clk 0:02:49.5]} 6. bxc3 {[%clk 0:03:02.3]} 6... Nc6 {[%clk
0:02:48.4]} 7. Nf3 {[%clk 0:03:01.4]} 7... Bc5 {[%clk 0:02:48.3]} 8. O-O {[%clk
0:03:00.8]} 8... O-O {[%clk 0:02:48.3]} 9. d3 {[%clk 0:03:01.1]} 9... Bb6 {[%clk
0:02:47.8]} 10. Re1 {[%clk 0:02:53.2]} 10... Re8 {[%clk 0:02:40.6]} 11. Rb1
{[%clk 0:02:51.4]} 11... Be6 {[%clk 0:02:32.2]} 12. c4 {[%clk 0:02:45]} 12...
Qd7 {[%clk 0:02:13.8]} 13. Ng5 {[%clk 0:02:39.1]} 13... Bf5 {[%clk 0:02:10.3]}
14. Bd2 {[%clk 0:02:11.2]} 14... Rad8 {[%clk 0:01:54.9]} 15. Bc3 {[%clk
0:01:34.2]} 15... h6 {[%clk 0:01:48.4]} 16. Ne4 {[%clk 0:01:32.6]} 16... Bg4
{[%clk 0:01:48.5]} 17. Qc1 {[%clk 0:00:50.1]} 17... f5 {[%clk 0:01:41.6]} 18.
Nd2 {[%clk 0:00:50]} 18... Nd4 {[%clk 0:01:27.6]} 19. Nb3 {[%clk 0:00:37.8]}
19... c5 {[%clk 0:00:56.3]} 20. Bxd4 {[%clk 0:00:35.9]} 20... cxd4 {[%clk
0:00:56.6]} 21. c5 {[%clk 0:00:33.8]} 21... Bc7 {[%clk 0:00:56.3]} 22. Bxb7
{[%clk 0:00:28.1]} 22... e4 {[%clk 0:00:47.6]} 23. dxe4 {[%clk 0:00:28.2]} 23...
f4 {[%clk 0:00:37.3]} 24. c6 {[%clk 0:00:24.8]} 24... Qf7 {[%clk 0:00:35.3]} 25.
e5 {[%clk 0:00:23.2]} 25... Rf8 {[%clk 0:00:17.8]} 26. Qxf4 {[%clk 0:00:21]}
26... Qh5 {[%clk 0:00:17.4]} 27. Qe4 {[%clk 0:00:16]} 27... Rxf2 {[%clk
0:00:13.9]} 28. h4 {[%clk 0:00:09.5]} 28... Bf3 {[%clk 0:00:09.5]} 29. Kxf2
{[%clk 0:00:06.2]} 29... Bxe4 {[%clk 0:00:09.3]} 30. Rxe4 {[%clk 0:00:07.1]}
30... Qf5+ {[%clk 0:00:08.3]} 31. Rf4 {[%clk 0:00:07.2]} 31... Qxc2+ {[%clk
0:00:07.9]} 32. Kf3 {[%clk 0:00:07.8]} 32... Qxb1 {[%clk 0:00:07.3]} 33. e6
{[%clk 0:00:07.9]} 33... Qd1+ {[%clk 0:00:07.2]} 34. Ke4 {[%clk 0:00:07.5]}
34... Bxf4 {[%clk 0:00:08.1]} 35. gxf4 {[%clk 0:00:07.2]} 35... Qe1+ {[%clk
0:00:08.4]} 36. Kf5 {[%clk 0:00:07.4]} 36... Rf8+ {[%clk 0:00:08.6]} 37. Kg4
{[%clk 0:00:07.6]} 37... Qxe6+ {[%clk 0:00:09]} 38. Kg3 {[%clk 0:00:08.5]} 38...
Qe3+ {[%clk 0:00:09.2]} 39. Kg4 {[%clk 0:00:08.7]} 39... Rxf4+ {[%clk
0:00:09.7]} 0-1